fUSD/lending_fUSD_20240802
["ID","MTS","AMOUNT","RATE_DAILY","PERIOD"]
[333881722,1722593451243,-4714.3,0.00019987,2]
[333881723,1722593451252,-500.0,0.00019987,2]
[333881724,1722593451262,-4724.55,0.00019987,2]
[333881725,1722593451271,-5012.57,0.00019987,2]
[333881726,1722593451282,-611.48,0.00019987,2]
[333881727,1722593451291,-22170.06,0.00019987,2]
[333881728,1722593451301,-6982.85,0.00019987,2]
[333881729,1722593451311,-4999.42,0.00019987,2]
[333881730,1722593451320,-2639.71,0.00019987,2]
[333881731,1722593451329,-698.97,0.00019987,2]
[333881732,1722593451339,-8275.3,0.00019987,2]
[333881733,1722593451348,-1600.55,0.00019987,2]
[333881734,1722593451357,-7293.03,0.00019987,2]
[333881735,1722593451367,-1870.71,0.00019987,2]
[333881736,1722593451376,-4620.9,0.00019987,2]
[333881737,1722593451386,-2173.92,0.00019987,2]
[333881738,1722593451396,-500.0,0.00019987,2]
[333881739,1722593451406,-4949.85,0.00019987,2]
[333881740,1722593451416,-500.0,0.00019988,2]
[333881741,1722593451426,-6458.61,0.00019988,2]
[333881742,1722593451435,-6553.16,0.00019988,2]
[333881743,1722593451445,-6042.91,0.00019988,2]
[333881744,1722593451455,-3378.59,0.00019988,2]
[333881745,1722593451464,-2935.44,0.00019988,2]
[333881746,1722593451473,-44103.16073268,0.00019988,2]
[333881747,1722593451486,-25449.9999,0.00019988,2]
[333881748,1722593451499,-8400.0,0.00019988,2]
[333881749,1722593451509,-264.3694702,0.00019988,2]
[333881750,1722593451521,-3285.42924044,0.00019988,2]
[333881751,1722593451534,-768.85,0.00019988,2]
[333881752,1722593451580,-432.77116256,0.00019988,2]
[333881753,1722593451591,-4940.94527216,0.00019988,2]
[333881754,1722593451602,-850.0,0.00019988,2]
[333881755,1722593451614,-346.76974357,0.00019988,2]
[333881756,1722593451681,-1686.69447839,0.00019988,2]
[333881757,1722593451690,-3903.28894332,0.00019988,2]
[333881760,1722593554653,155.59290137,0.000105,2]
[333881761,1722593587463,181.67289393,0.000105,2]
[333881763,1722593686486,231.64461953,0.000105,2]
[333881764,1722593827634,982.50008388,0.000105,2]
[333881765,1722593933674,511.8825437,0.000105,2]
[333881766,1722594016637,511.8825437,0.000105,2]
[333881767,1722594026342,182.93,0.00026023,120]
[333881768,1722594196827,174.08,0.00010075,2]
[333881769,1722594261645,511.8825437,0.00010075,2]
[333881770,1722594269634,511.8825437,0.00010075,2]
[333881771,1722594378672,511.8825437,0.00010075,2]
[333881775,1722594476631,511.8825437,0.00010075,2]
[333881777,1722594571627,511.8825437,0.00010075,2]
[333881805,1722594632458,-971.11180087,0.00010789,2]
[333881807,1722594632470,-4843.88972904,0.00010789,2]
[333881809,1722594632484,-105.56687423,0.00010789,2]
[333881810,1722594632493,-300.0,0.00010889,2]
[333881811,1722594632503,-150.0,0.00010889,2]
[333881812,1722594632512,-108868.0,0.0001089,2]
[333881813,1722594632521,-34368.45536042,0.00010989,2]
[333881815,1722594632531,-154.93,0.0001099,2]
[333881817,1722594632540,-154.93,0.0001099,2]
[333881819,1722594632550,-154.93,0.0001099,2]
[333881821,1722594632560,-2535.63767143,0.00010997,2]
[333881823,1722594632570,-150.0,0.00010999,2]
[333881825,1722594632579,-1342640.50961285,0.00011,2]
[333881827,1722594632591,-24729.67258183,0.00011,2]
[333881831,1722594632615,-927.83269367,0.00011,2]
[333881836,1722594632662,-2695.04311048,0.00011,2]
[333881838,1722594632674,-10839.0317153,0.00011,2]
[333881840,1722594632686,-909.71714587,0.00011,2]
[333881843,1722594632698,-1361.45276237,0.00011,2]
[333881845,1722594632711,-1198.16775,0.00011,2]
[333881848,1722594632728,-805.36977144,0.00011,2]
[333881850,1722594632739,-14629.17231937,0.00011,2]
[333881852,1722594632751,-4980.95709904,0.00011,2]
[333881854,1722594632763,-155064.72969039,0.00011,2]
[333881856,1722594632774,-24175.14347884,0.00011,2]
[333881859,1722594632790,-2281.279,0.00011,2]
[333881862,1722594632815,-628.42,0.00011,2]
[333881865,1722594632826,-5973.18862995,0.00011,2]
[333881867,1722594632838,-1870.38996154,0.00011,2]
[333881903,1722594638610,-1230.45007736,0.00010997,2]
[333881904,1722594638620,-3499.50697264,0.00011,2]
[333881905,1722594638633,-564.11498197,0.00011,2]
[333881906,1722594638649,-612.18240239,0.00011,2]
[333881907,1722594638660,-313.27,0.00011,2]
[333881908,1722594638671,-254.99999,0.00011,2]
[333881910,1722594638682,-512.01697496,0.00011,2]
[333881959,1722594639107,-2769988.29766179,0.00011,2]
[333881961,1722594639119,-47776.02367296,0.00011,2]
[333881963,1722594639131,-5501.56315406,0.00011,2]
[333881966,1722594639142,-1587.81759761,0.00011,2]
[333881968,1722594639153,-746.48651101,0.00011,2]
[333881970,1722594639164,-500.0,0.00011,2]
[333881972,1722594639175,-863.27733461,0.00011,2]
[333882087,1722594640317,-335.94789164,0.00011,2]
[333882095,1722594640388,-6496.46948832,0.00011,2]
[333882098,1722594640400,-511.70455756,0.00011,2]
[333882100,1722594640411,-404.31331476,0.00011,2]
[333882102,1722594640424,-585.97499997,0.00011,2]
[333882105,1722594640439,-3536.06282993,0.00011,2]
[333882107,1722594640451,-559.88149521,0.00011,2]
[333882115,1722594640579,-927.22751103,0.00011,2]
[333882116,1722594640594,-846.52210567,0.00011,2]
[333882118,1722594640655,-993.015,0.00011,2]
[333882119,1722594640675,-11548.30513058,0.00011,2]
[333882120,1722594640688,-500.0,0.00011,2]
[333882121,1722594640699,-681.43362743,0.00011,2]
[333882122,1722594640725,-194641.81709079,0.00011,2]
[333882123,1722594640737,-15122.18966287,0.00011,2]
[333882375,1722594643391,-491.2429474,0.00011,2]
[333882392,1722594643537,-3228.38219827,0.00011,2]
[333882398,1722594643589,-1659.575,0.00011,2]
[333882414,1722594643750,-210968.131599,0.00011,2]
[333882658,1722594646579,-2541.60576451,0.00011,2]
[333882660,1722594646590,-1923.23918246,0.00011,2]
[333882677,1722594646758,-2030.02912599,0.00011,2]
[333882679,1722594646769,-1801.94717962,0.00011,2]
[333882681,1722594646780,-457.57599352,0.00011,2]
[333882685,1722594646809,-763.91063439,0.00011,2]
[333882725,1722594654360,155.59290137,0.000105,2]
[333882726,1722594660765,511.8825437,0.00010075,2]
[333882727,1722594673874,150.5,0.00019701,120]
[333882728,1722594674438,150.5,0.00019691,120]
[333882729,1722594674860,272.0,0.00019681,120]
[333882740,1722594792892,210.0,0.0001945,120]
[333882741,1722594867084,252.72893978,0.00010621,2]
[333882742,1722594946683,511.8825437,0.00010621,2]
[333882743,1722594961623,511.8825437,0.00010621,2]
[333882745,1722595078634,419.658836,0.00010621,2]
[333882758,1722595831556,-534.30658797,0.000109,2]
[333882759,1722595831565,-600.0,0.000109,3]
[333882760,1722595831575,-153.68776239,0.000109,2]
[333882761,1722595831584,-150.0,0.00010986,2]
[333882762,1722595831594,-154.93,0.0001099,2]
[333882763,1722595831603,-300.0,0.00010999,2]
[333882764,1722595831612,-317.10023331,0.00011,2]
[333882765,1722595831763,-2600.0,0.00011,2]
[333882766,1722595831774,-4843.30926104,0.00011,2]
[333882767,1722595831841,-4819.72288881,0.00011,2]
[333882768,1722595831913,-1800.0,0.00011,2]
[333882787,1722595837531,-3125.04163485,0.00011,2]
[333882791,1722595838128,-1075.75938169,0.00011,2]
[333882797,1722595838549,-1544.59791416,0.00011,2]
[333882798,1722595838561,-1014.6173005,0.00011,2]
[333882799,1722595838574,-253.70482749,0.00011,2]
[333882801,1722595838585,-1968.54503169,0.00011,2]
[333882807,1722595839630,-300.0,0.00011,2]
[333882808,1722595839642,-2015.94855758,0.00011,2]
[333882809,1722595839652,-701.66503495,0.00011,2]
[333882810,1722595839663,-1209.49724686,0.00011,2]
[333882811,1722595839715,-2673.44204393,0.00011,2]
[333882812,1722595839726,-630.96,0.00011,2]
[333882813,1722595839801,-302.0,0.00011,2]
[333882814,1722595839885,-48926.66800215,0.00011,2]
[333882815,1722595839896,-1765.19999999,0.00011,2]
[333882941,1722595842546,-895.88804481,0.00011,2]
[333882962,1722595842746,-823.52658831,0.00011,2]
[333883014,1722595845861,-6751.79144901,0.00011,2]
[333883015,1722595845874,-400928.76472182,0.00011,2]
[333883016,1722595845973,-554.62361369,0.00011,2]
[333883017,1722595845985,-1193.28658012,0.00011,2]
[333883018,1722595845997,-3872.34396022,0.00011,2]
[333883019,1722595846028,-1216.07779227,0.00011,2]
[333883020,1722595846040,-497.75,0.00011,2]
[333883021,1722595846052,-260.40473227,0.00011,2]
[333883032,1722595902449,342.69,0.00010644,2]
[333883033,1722595933406,155.59290137,0.000105,2]
[333883034,1722596274411,165.33,0.00010387,2]
[333883035,1722596865855,151.0,0.00027,120]
[333883036,1722596872267,151.0,0.00027,120]
[333883037,1722596882362,151.0,0.00027,120]
[333883038,1722596888529,151.0,0.00027,120]
[333883039,1722596897258,151.0,0.00027,120]
[333883040,1722596903574,151.0,0.00027,120]
[333883041,1722596922780,151.0,0.00027,120]
[333883042,1722596930047,151.0,0.00027,120]
[333883043,1722596941812,279.39703733,0.00027,120]
[333883044,1722596968607,664.31929106,0.00027,120]
[333883060,1722597031834,-325.55,0.00010706,2]
[333883061,1722597031843,-682.76347,0.0001089,2]
[333883062,1722597031852,-150.0,0.00010899,2]
[333883063,1722597031861,-300.0,0.00010899,2]
[333883064,1722597031871,-241.18375843,0.000109,2]
[333883065,1722597031916,-388.13254157,0.000109,2]
[333883066,1722597031926,-2508.7196,0.000109,2]
[333883067,1722597031935,-2540.38523055,0.000109,2]
[333883068,1722597031946,-1506.92253109,0.000109,2]
[333883069,1722597031957,-2763.18092288,0.000109,2]
[333883070,1722597031975,-1000.17000052,0.000109,2]
[333883071,1722597031984,-5012.2861,0.000109,2]
[333883072,1722597031995,-754.2244,0.000109,2]
[333883073,1722597032004,-679.8807,0.000109,2]
[333883074,1722597032013,-157.35736913,0.000109,2]
[333883075,1722597032023,-13690.3789,0.000109,2]
[333883076,1722597032032,-1543.6991,0.000109,2]
[333883077,1722597032041,-11751.12133039,0.00011,2]
[333883078,1722597032053,-821.84153478,0.00011,2]
[333883079,1722597032064,-259.37769393,0.00011,2]
[333883080,1722597032076,-917.0530276,0.00011,2]
[333883081,1722597032094,-468.09747962,0.00011,2]
[333883082,1722597032105,-3317.59,0.00011,2]
[333883083,1722597032116,-6990.38974753,0.00011,2]
[333883084,1722597032147,-2176.28782538,0.00011,2]
[333883085,1722597032158,-64119.05658757,0.00011,2]
[333883086,1722597032169,-3603.53690901,0.00011,2]
[333883087,1722597032180,-21010.29633008,0.00011,2]
[333883088,1722597032230,-698.71996427,0.00011,2]
[333883094,1722597038590,-3295.73985537,0.00011,2]
[333883095,1722597038602,-451.57864314,0.00011,2]
[333883096,1722597038614,-3879.31648734,0.00011,2]
[333883097,1722597038626,-941.43031319,0.00011,2]
[333883098,1722597038640,-940.05916336,0.00011,2]
[333883099,1722597038652,-4779.57044089,0.00011,2]
[333883101,1722597038663,-880.12,0.00011,2]
[333883102,1722597038674,-939.09260776,0.00011,2]
[333883103,1722597038685,-853.08727691,0.00011,2]
[333883104,1722597038697,-955.97027776,0.00011,2]
[333883105,1722597038708,-4936.4916975,0.00011,2]
[333883106,1722597038719,-4677.82886025,0.00011,2]
[333883107,1722597038729,-1765.0,0.00011,2]
[333883108,1722597038740,-19242.77518488,0.00011,2]
[333883109,1722597038751,-12555.43099431,0.00011,2]
[333883110,1722597038762,-527.99648139,0.00011,2]
[333883111,1722597038773,-1857.14049247,0.00011,2]
[333883125,1722597040376,-1946.30937,0.00011,2]
[333883127,1722597040422,-663.40789983,0.00011,2]
[333883128,1722597040458,-300.0,0.00011,2]
[333883129,1722597040492,-113422.32295608,0.00011,2]
[333883130,1722597042277,3000.0,0.00025,60]
[333883134,1722597042823,-316.79,0.00011,2]
[333883135,1722597042835,-648.31,0.00011,2]
[333883136,1722597042936,-294.38089567,0.00011,2]
[333883137,1722597043004,-646.78263484,0.00011,2]
[333883138,1722597043104,-558.73798659,0.00011,2]
[333883140,1722597043116,-1673.025,0.00011,2]
[333883141,1722597043127,-5350.19999999,0.00011,2]
[333883142,1722597043139,-295.464,0.00011,2]
[333883156,1722597046514,-338.40316776,0.00011,2]
[333883157,1722597046526,-669.58337309,0.00011,2]
[333883158,1722597046555,-3375.74610507,0.00011,2]
[333883159,1722597046751,-1038.589552,0.00011,2]
[333883160,1722597046774,-269.24,0.00011,2]
[333883161,1722597046785,-1117.56875063,0.00011,2]
[333883162,1722597053660,3000.0,0.00025,60]
[333883163,1722597074532,155.59290137,0.000105,2]
[333883164,1722597080486,3000.0,0.00025,60]
[333883165,1722597100012,3000.0,0.00025,60]
[333883166,1722597114056,3073.33,0.00025,60]
[333883167,1722597248851,1177.84056161,0.00027,120]
[333883168,1722597536174,339.9,0.00010152,2]
[333883169,1722597904881,-26556.4543,0.00010897,2]
[333883170,1722597917267,-158.2364947,0.000109,2]
[333883171,1722597917290,-7919.11063548,0.000109,2]
[333883172,1722597917312,-35815.40566845,0.00010957,2]
[333883174,1722597952648,-157.35736911,0.00010899,2]
[333883175,1722597952671,-150.0,0.00010957,2]
[333883176,1722597952694,-3103.9289,0.00010958,2]
[333883177,1722597952715,-698.71373089,0.00010958,2]
[333883181,1722598028981,1311.99,0.00025,60]
[333883201,1722598232040,-568.96956,0.0001089,2]
[333883203,1722598232050,-131.03044,0.00010958,2]
[333883205,1722598232061,-1600.15932911,0.00010958,2]
[333883207,1722598232071,-1279.32017089,0.00010958,2]
[333883209,1722598232082,-293.43812873,0.00010958,2]
[333883214,1722598232121,-787.72537109,0.00010958,2]
[333883216,1722598232133,-286.93652929,0.00010958,2]
[333883217,1722598232142,-466.15750682,0.00010989,2]
[333883222,1722598232207,-1650.18708894,0.00010989,2]
[333883224,1722598232216,-337.46431487,0.0001099,2]
[333883226,1722598232226,-1944.47824522,0.0001099,2]
[333883228,1722598232240,-5099.5903114,0.0001099,2]
[333883231,1722598232251,-5632.00201811,0.0001099,2]
[333883233,1722598232260,-150.0,0.00010996,2]
[333883234,1722598232269,-4109.3990174,0.00010997,2]
[333883236,1722598232279,-1897.4636113,0.00010997,2]
[333883238,1722598232289,-561.3463036,0.00010997,2]
[333883240,1722598232298,-16859.1269468,0.00010997,2]
[333883241,1722598232307,-10024.232482,0.00010997,2]
[333883242,1722598232317,-1461.5460694,0.00010997,2]
[333883243,1722598232327,-72175.738819,0.00010997,2]
[333883244,1722598232336,-210.68434848,0.00010999,2]
[333883245,1722598232345,-5950.2341632,0.00010999,2]
[333883246,1722598232355,-129807.30146435,0.00011,2]
[333883247,1722598232365,-3326.4452,0.00011005,2]
[333883248,1722598232374,-1150.70425807,0.00011105,2]
[333883249,1722598232384,-649.18433116,0.00011105,2]
[333883250,1722598232393,-155.0,0.00011105,2]
[333883251,1722598232403,-365.73935792,0.00011105,2]
[333883252,1722598232412,-3236.92072746,0.00011105,2]
[333883253,1722598232421,-2455.43,0.00011105,2]
[333883254,1722598232431,-1000.0,0.00011237,2]
[333883255,1722598232441,-4285.64,0.00011891,2]
[333883256,1722598232450,-500.0,0.00011898,2]
[333883258,1722598232459,-550.0,0.00012,2]
[333883260,1722598232469,-255.0,0.00012041,2]
[333883262,1722598232479,-2706.81,0.00012081,2]
[333883264,1722598232488,-182.93,0.00012091,2]
[333883265,1722598232498,-2310.42,0.00012104,2]
[333883266,1722598232507,-1852.42,0.00012121,2]
[333883267,1722598232517,-9232.16,0.00012146,2]
[333883268,1722598232527,-1468.7,0.00012187,2]
[333883269,1722598232537,-250.0,0.00012304,2]
[333883270,1722598232547,-12804.49110925,0.0001254,2]
[333883271,1722598232557,-411.62,0.0001256,2]
[333883272,1722598232567,-411.62,0.00012563,2]
[333883273,1722598232576,-411.62,0.00012566,2]
[333883274,1722598232586,-411.62,0.0001257,2]
[333883275,1722598232595,-411.62,0.00012573,2]
[333883276,1722598232605,-411.62,0.00012576,2]
[333883277,1722598232615,-411.62,0.0001258,2]
[333883278,1722598232624,-411.62,0.00012583,2]
[333883279,1722598232633,-411.62,0.00012586,2]
[333883280,1722598232643,-411.62,0.0001259,2]
[333883281,1722598232653,-411.62,0.00012593,2]
[333883282,1722598232662,-150.0,0.00012594,2]
[333883283,1722598232672,-2000.0,0.00012594,2]
[333883284,1722598232681,-250.0,0.00012594,2]
[333883285,1722598232691,-277.79,0.00012594,2]
[333883286,1722598232700,-411.62,0.00012596,2]
[333883287,1722598232709,-411.62,0.000126,2]
[333883288,1722598232718,-411.62,0.00012603,2]
[333883289,1722598232728,-411.62,0.00012606,2]
[333883290,1722598232737,-411.62,0.0001261,2]
[333883291,1722598232746,-411.62,0.00012613,2]
[333883292,1722598232756,-411.62,0.00012616,2]
[333883293,1722598232766,-411.62,0.0001262,2]
[333883294,1722598232778,-187.49,0.00012622,2]
[333883295,1722598232788,-411.62,0.00012623,2]
[333883296,1722598232797,-1000.0,0.00012641,2]
[333883297,1722598232808,-172.77,0.00012786,2]
[333883298,1722598232817,-686.31468402,0.00012874,2]
[333883299,1722598232827,-160.24817792,0.00013,2]
[333883300,1722598232837,-35899.44861213,0.00013,10]
[333883301,1722598232849,-891.68121634,0.00013066,2]
[333883302,1722598232860,-150.0,0.00013184,2]
[333883303,1722598232869,-3000.0,0.000132,2]
[333883304,1722598232878,-568.96956,0.0001339,2]
[333883305,1722598232888,-531.21153845,0.00013479,2]
[333883306,1722598232897,-718.52934818,0.000138,2]
[333883307,1722598232907,-163.53,0.00013973,2]
[333883308,1722598232917,-668.63,0.00013973,2]
[333883309,1722598232927,-150.41,0.00013973,2]
[333883310,1722598232936,-600.0,0.00014,2]
[333883311,1722598232946,-1000.0,0.00014046,2]
[333883312,1722598232955,-359.26467409,0.00014072,2]
[333883313,1722598232965,-182.93,0.00014106,2]
[333883314,1722598232975,-359.26467409,0.0001459,2]
[333883315,1722598232985,-16428.67272383,0.000146,2]
[333883316,1722598232994,-187.49,0.00014726,2]
[333883317,1722598233003,-236.10516886,0.00014776,2]
[333883318,1722598233013,-359.26467409,0.0001499,2]
[333883319,1722598233022,-605.82429904,0.00015,2]
[333883320,1722598233032,-16426.41590952,0.00015,2]
[333883321,1722598233045,-1027.0,0.00015,2]
[333883322,1722598233054,-4103.0,0.00015,2]
[333883323,1722598233064,-359.26467409,0.0001539,2]
[333883324,1722598233074,-16426.41590952,0.000154,2]
[333883325,1722598233084,-527.033,0.00015447,2]
[333883326,1722598233093,-1000.0,0.00015451,2]
[333883327,1722598233103,-359.26467409,0.0001579,2]
[333883328,1722598233112,-16426.41590952,0.000158,2]
[333883329,1722598233121,-568.96956,0.0001589,2]
[333883330,1722598233129,-3000.0,0.000159,2]
[333883331,1722598233138,-172.77,0.00015982,2]
[333883332,1722598233148,-650.0,0.00016,2]
[333883333,1722598233156,-697.52989478,0.00016113,2]
[333883334,1722598233165,-182.93,0.00016121,2]
[333883335,1722598233174,-359.26467409,0.0001619,2]
[333883336,1722598233184,-359.26467409,0.00016194,2]
[333883337,1722598233193,-11079.80069244,0.000162,2]
[333883338,1722598234140,-445.10286169,0.000162,2]
[333883339,1722598234171,-2562.94276263,0.000162,2]
[333883340,1722598234182,-2338.56959276,0.000162,2]
[333883341,1722598234192,-1711.8056517,0.000165,2]
[333883342,1722598234201,-2441.82475554,0.000166,2]
[333883350,1722598238616,-155.0,0.00013986,2]
[333883353,1722598238629,-13984.59115398,0.000166,2]
[333883355,1722598238640,-187.49,0.00016829,2]
[333883356,1722598238650,-359.26467409,0.00016845,2]
[333883357,1722598238661,-1000.0,0.00016855,2]
[333883358,1722598238671,-16426.41590952,0.00017,2]
[333883359,1722598238681,-150.0,0.0001726,2]
[333883360,1722598238692,-153.66,0.0001739,2]
[333883361,1722598238702,-500.0,0.000174,2]
[333883362,1722598238713,-16426.41590952,0.000174,2]
[333883363,1722598238723,-302.26,0.00017534,2]
[333883364,1722598238733,-150.0,0.00017616,2]
[333883365,1722598238742,-150.0,0.00017616,2]
[333883366,1722598238752,-150.0,0.00017616,2]
[333883367,1722598238763,-461.00038613,0.000177,2]
[333883368,1722598238776,-3695.71339542,0.000177,2]
[333883369,1722598238786,-16426.41590952,0.000178,2]
[333883370,1722598238797,-170.42632731,0.000178,2]
[333883371,1722598238806,-546.25951374,0.00017807,2]
[333883372,1722598238817,-122990.515686,0.0001787,2]
[333883373,1722598238827,-272123.38510408,0.0001788,2]
[333883374,1722598238837,-600.0,0.000179,6]
[333883375,1722598238848,-5347.41372549,0.0001799,2]
[333883376,1722598238858,-535.42333167,0.00018,2]
[333883377,1722598238868,-700.0,0.00018,2]
[333883378,1722598238878,-461.00038609,0.00018045,2]
[333883379,1722598238887,-571.89207897,0.00018081,2]
[333883380,1722598238897,-208.14041065,0.00018116,2]
[333883381,1722598238907,-182.93,0.00018136,2]
[333883382,1722598238917,-5347.41372549,0.0001819,2]
[333883383,1722598238926,-16426.41590952,0.000182,2]
[333883384,1722598238936,-5347.41372549,0.00018315,2]
[333883385,1722598238946,-461.00038609,0.00018389,2]
[333883386,1722598238955,-568.96956,0.0001839,2]
[333883387,1722598238964,-155.0,0.00018499,2]
[333883388,1722598238974,-1200.0,0.000185,6]
[333883389,1722598238984,-5347.41372549,0.0001859,2]
[333883390,1722598238993,-3000.0,0.000186,2]
[333883391,1722598239004,-1800.0,0.000186,6]
[333883392,1722598239013,-150.0,0.0001863,2]
[333883393,1722598239023,-150.0,0.0001863,2]
[333883394,1722598239033,-150.0,0.0001863,2]
[333883395,1722598239044,-2500.0,0.000187,6]
[333883396,1722598239053,-461.00038609,0.00018734,2]
[333883397,1722598239062,-1423.80300324,0.000188,6]
[333883398,1722598239075,-286.3073085,0.000188,6]
[333883399,1722598239086,-777.16020434,0.000188,6]
[333883400,1722598239097,-612.72948392,0.000188,6]
[333883401,1722598239107,-600.0,0.000189,6]
[333883402,1722598239116,-31.65750717,0.00018933,2]
[333883403,1722598239164,-0.10049853,0.00018933,2]
[333883404,1722598239697,-155.7319943,0.00018933,2]
[333883405,1722598239707,-5047.6540057,0.00019051,2]
[333883406,1722598239720,-299.75971979,0.00019051,2]
[333883407,1722598239730,-1071.1976093,0.00019061,2]
[333883408,1722598239740,-1027.4397447,0.00019068,2]
[333883409,1722598239752,-4319.97398079,0.00019068,2]
[333883410,1722598239762,-5077.4187,0.00019078,2]
[333883411,1722598239777,-461.00038609,0.00019078,2]
[333883412,1722598239788,-6203.414,0.00019078,2]
[333883413,1722598239802,-10926.69293312,0.00019168,2]
[333883415,1722598239815,-1925.36,0.00019168,2]
[333883417,1722598239826,-8700.04510248,0.00019168,2]
[333883464,1722598240978,-204.1273217,0.00016599,2]
[333883465,1722598240988,-243.48413411,0.00016599,2]
[333883466,1722598240999,-478.75263346,0.00016599,2]
[333883467,1722598241060,-1121.2213578,0.00016599,2]
[333883468,1722598241071,-4101.54855789,0.00016599,2]
[333883469,1722598241081,-37269.4529448,0.00019168,2]
[333883470,1722598241092,-5347.41372549,0.00019168,2]
[333883471,1722598241102,-6208.48844253,0.00019178,7]
[333883472,1722598241181,-32485.67952792,0.00019178,7]
[333883473,1722598241193,-88307.34503211,0.00019178,7]
[333883474,1722598241203,-500.0,0.00019178,2]
[333883475,1722598241214,-500.0,0.00019178,2]
[333883476,1722598241225,-500.0,0.00019178,2]
[333883477,1722598241236,-500.0,0.00019178,2]
[333883478,1722598241247,-500.0,0.00019178,2]
[333883479,1722598241258,-500.0,0.00019178,2]
[333883480,1722598241268,-500.0,0.00019178,2]
[333883481,1722598241278,-500.0,0.00019178,2]
[333883482,1722598241289,-151.52071828,0.00019178,2]
[333883483,1722598241300,-500.0,0.00019178,2]
[333883484,1722598241310,-500.0,0.00019178,2]
[333883485,1722598241320,-500.0,0.00019178,2]
[333883486,1722598241330,-500.0,0.00019178,2]
[333883487,1722598241340,-500.0,0.00019178,2]
[333883488,1722598241350,-500.0,0.00019178,2]
[333883489,1722598241359,-500.0,0.00019178,2]
[333883490,1722598241369,-500.0,0.00019178,2]
[333883491,1722598241380,-500.0,0.00019178,2]
[333883492,1722598241390,-500.0,0.00019178,2]
[333883493,1722598241399,-504.64793913,0.00019178,2]
[333883494,1722598241408,-500.0,0.00019178,2]
[333883495,1722598241418,-500.0,0.00019178,2]
[333883496,1722598241428,-500.0,0.00019178,2]
[333883497,1722598241438,-500.0,0.00019178,2]
[333883498,1722598241448,-300.00941719,0.00019178,2]
[333883499,1722598241458,-500.0,0.00019178,2]
[333883500,1722598241468,-500.0,0.00019178,2]
[333883501,1722598241478,-500.0,0.00019178,2]
[333883502,1722598241488,-221.543591,0.00019178,2]
[333883503,1722598241498,-500.0,0.00019178,2]
[333883504,1722598241508,-500.0,0.00019178,2]
[333883505,1722598241517,-812.75,0.00019178,2]
[333883506,1722598241528,-500.0,0.00019178,2]
[333883507,1722598241538,-500.0,0.00019178,2]
[333883508,1722598241548,-1280.21,0.00019178,2]
[333883509,1722598241557,-500.0,0.00019178,2]
[333883510,1722598241567,-500.0,0.00019178,2]
[333883511,1722598241577,-500.0,0.00019178,2]
[333883512,1722598241586,-500.0,0.00019178,2]
[333883513,1722598241596,-250.42336919,0.00019178,2]
[333883514,1722598241605,-2227.93,0.00019178,2]
[333883515,1722598241615,-500.0,0.00019178,2]
[333883516,1722598241624,-2569.17,0.00019178,2]
[333883517,1722598241635,-500.0,0.00019178,2]
[333883518,1722598241644,-962.68,0.00019178,2]
[333883519,1722598241653,-549.87,0.00019178,2]
[333883520,1722598241663,-500.0,0.00019178,2]
[333883521,1722598241673,-589.76,0.00019178,2]
[333883522,1722598241682,-151.273506,0.00019178,2]
[333883523,1722598241691,-151.0,0.00019178,2]
[333883524,1722598241701,-151.0,0.00019178,2]
[333883525,1722598241711,-151.0,0.00019178,2]
[333883526,1722598241721,-151.0,0.00019178,2]
[333883527,1722598241730,-151.0,0.00019178,2]